[Event "Early-Titled-Tuesday-Blitz-September-12-2023"]
[Site "Chess.com"]
[Date "2023.09.12"]
[Round "1"]
[White "mitrabhaa"]
[Black "fen_fire"]
[Result "1-0"]
[WhiteElo "2849"]
[BlackElo "2476"]
[TimeControl "180+1"]
[EndTime "8:08:18 PDT"]
[Termination "mitrabhaa won by checkmate"]

1. b3 {[%clk 0:02:59.4]} 1... e5 {[%clk 0:02:44]} 2. Bb2 {[%clk 0:02:59]} 2...
Nc6 {[%clk 0:02:35.3]} 3. c4 {[%clk 0:02:58.5]} 3... Nf6 {[%clk 0:02:32.2]} 4.
e3 {[%clk 0:02:58.1]} 4... d5 {[%clk 0:02:28.8]} 5. cxd5 {[%clk 0:02:58.1]} 5...
Nxd5 {[%clk 0:02:29.6]} 6. Nf3 {[%clk 0:02:58.2]} 6... Bd6 {[%clk 0:02:29.1]} 7.
Nc3 {[%clk 0:02:57.9]} 7... Nxc3 {[%clk 0:02:27.3]} 8. Bxc3 {[%clk 0:02:57.9]}
8... O-O {[%clk 0:02:26.8]} 9. Be2 {[%clk 0:02:57.4]} 9... Qe7 {[%clk 0:02:23]}
10. d3 {[%clk 0:02:54]} 10... b6 {[%clk 0:02:18.2]} 11. O-O {[%clk 0:02:52.9]}
11... Bb7 {[%clk 0:02:18.7]} 12. Nd2 {[%clk 0:02:52.9]} 12... Rad8 {[%clk
0:02:13.9]} 13. Nc4 {[%clk 0:02:45.1]} 13... Bb4 {[%clk 0:02:07.5]} 14. Bb2
{[%clk 0:02:42.9]} 14... Qe6 {[%clk 0:01:41.8]} 15. a3 {[%clk 0:02:38.3]} 15...
Be7 {[%clk 0:01:41.3]} 16. Qc2 {[%clk 0:02:38.2]} 16... f6 {[%clk 0:01:37.7]}
17. b4 {[%clk 0:02:32]} 17... Qd5 {[%clk 0:01:26.6]} 18. e4 {[%clk 0:02:00.8]}
18... Qf7 {[%clk 0:01:17.3]} 19. Ne3 {[%clk 0:01:56.2]} 19... Kh8 {[%clk
0:00:37.2]} 20. b5 {[%clk 0:01:47]} 20... Nd4 {[%clk 0:00:37]} 21. Bxd4 {[%clk
0:01:46.6]} 21... Rxd4 {[%clk 0:00:37.9]} 22. Qxc7 {[%clk 0:01:43.2]} 22... Bc5
{[%clk 0:00:38.4]} 23. Qxf7 {[%clk 0:01:42.3]} 23... Rxf7 {[%clk 0:00:39.3]} 24.
a4 {[%clk 0:01:38.8]} 24... a5 {[%clk 0:00:35.1]} 25. Rfd1 {[%clk 0:01:32]}
25... g6 {[%clk 0:00:31.2]} 26. Bg4 {[%clk 0:01:30.1]} 26... Rf8 {[%clk
0:00:29.2]} 27. Be6 {[%clk 0:01:29.8]} 27... Rfd8 {[%clk 0:00:28.9]} 28. Bd5
{[%clk 0:01:29.5]} 28... Bc8 {[%clk 0:00:27.7]} 29. Bc4 {[%clk 0:01:29.8]} 29...
R4d6 {[%clk 0:00:25.1]} 30. Nd5 {[%clk 0:01:29.1]} 30... Bb7 {[%clk 0:00:24.8]}
31. Rac1 {[%clk 0:01:27]} 31... Bxd5 {[%clk 0:00:24.3]} 32. Bxd5 {[%clk
0:01:27.9]} 32... Kg7 {[%clk 0:00:23.9]} 33. Kf1 {[%clk 0:01:28]} 33... Kf8
{[%clk 0:00:24.1]} 34. Ke2 {[%clk 0:01:28.6]} 34... Ke7 {[%clk 0:00:24.8]} 35.
h4 {[%clk 0:01:29]} 35... R6d7 {[%clk 0:00:24.2]} 36. Rh1 {[%clk 0:01:28.9]}
36... h6 {[%clk 0:00:23.2]} 37. Rh3 {[%clk 0:01:27.5]} 37... Rc7 {[%clk
0:00:22.6]} 38. Rg3 {[%clk 0:01:25.5]} 38... g5 {[%clk 0:00:18.4]} 39. hxg5
{[%clk 0:01:25.6]} 39... hxg5 {[%clk 0:00:19.3]} 40. Rh3 {[%clk 0:01:24.8]}
40... Rdc8 {[%clk 0:00:18.1]} 41. Rh7+ {[%clk 0:01:23.9]} 41... Kd6 {[%clk
0:00:18.4]} 42. Rh6 {[%clk 0:01:24.8]} 42... Ke7 {[%clk 0:00:15.9]} 43. Rch1
{[%clk 0:01:23.7]} 43... Bd4 {[%clk 0:00:15.5]} 44. Bc6 {[%clk 0:01:20]} 44...
Rxc6 {[%clk 0:00:13.7]} 45. bxc6 {[%clk 0:01:19.7]} 45... Rxc6 {[%clk
0:00:14.6]} 46. Rd1 {[%clk 0:01:14]} 46... Rc3 {[%clk 0:00:14]} 47. Kf3 {[%clk
0:01:09.3]} 47... Ke6 {[%clk 0:00:12.9]} 48. Kg4 {[%clk 0:01:09.1]} 48... Rc2
{[%clk 0:00:12.1]} 49. Rf1 {[%clk 0:01:06.5]} 49... Rd2 {[%clk 0:00:09.6]} 50.
g3 {[%clk 0:01:04.3]} 50... Rxd3 {[%clk 0:00:09.7]} 51. f3 {[%clk 0:01:03.7]}
51... Ra3 {[%clk 0:00:09]} 52. Rc1 {[%clk 0:01:03.8]} 52... Bc5 {[%clk
0:00:09.2]} 53. Rc4 {[%clk 0:01:03.6]} 53... Rd3 {[%clk 0:00:08.2]} 54. Rh1
{[%clk 0:01:03]} 54... Rb3 {[%clk 0:00:07.7]} 55. Rd1 {[%clk 0:01:02.6]} 55...
Rb2 {[%clk 0:00:07.3]} 56. Rcc1 {[%clk 0:01:01.8]} 56... Rb3 {[%clk 0:00:07.2]}
57. Rf1 {[%clk 0:00:59.2]} 57... Rb4 {[%clk 0:00:07.5]} 58. Ra1 {[%clk 0:00:59]}
58... Rb2 {[%clk 0:00:07.7]} 59. Kh5 {[%clk 0:00:57.7]} 59... Kf7 {[%clk
0:00:06.6]} 60. Rad1 {[%clk 0:00:55.7]} 60... Rh2+ {[%clk 0:00:05.4]} 61. Kg4
{[%clk 0:00:55.7]} 61... Ke6 {[%clk 0:00:05.9]} 62. Rd8 {[%clk 0:00:54.3]} 62...
Rg2 {[%clk 0:00:05.8]} 63. Re8+ {[%clk 0:00:49.3]} 63... Kf7 {[%clk 0:00:05.5]}
64. Rc8 {[%clk 0:00:49.8]} 64... Kg6 {[%clk 0:00:04]} 65. Kh3 {[%clk 0:00:44.6]}
65... Ra2 {[%clk 0:00:03.9]} 66. Rd1 {[%clk 0:00:44.6]} 66... Rxa4 {[%clk
0:00:03.9]} 67. Rd7 {[%clk 0:00:43.8]} 67... Ra1 {[%clk 0:00:01.7]} 68. Kg4
{[%clk 0:00:43.8]} 68... Rg1 {[%clk 0:00:01.1]} 69. Rg8+ {[%clk 0:00:43.1]}
69... Kh6 {[%clk 0:00:01.6]} 70. Kf5 {[%clk 0:00:43.6]} 70... Rxg3 {[%clk
0:00:01.4]} 71. Rg6+ {[%clk 0:00:43.3]} 71... Kh5 {[%clk 0:00:01.3]} 72. Rh7#
{[%clk 0:00:42.8]} 1-0

[Event "Early-Titled-Tuesday-Blitz-September-12-2023"]
[Site "Chess.com"]
[Date "2023.09.12"]
[Round "1"]
[White "Alexandr_Predke"]
[Black "DvaHrasta"]
[Result "1-0"]
[WhiteElo "2863"]
[BlackElo "2484"]
[TimeControl "180+1"]
[EndTime "8:08:20 PDT"]
[Termination "Alexandr_Predke won on time"]

1. d4 {[%clk 0:02:59.4]} 1... Nf6 {[%clk 0:02:59.4]} 2. c4 {[%clk 0:02:55.8]}
2... e6 {[%clk 0:02:59.3]} 3. Nc3 {[%clk 0:02:53.3]} 3... Bb4 {[%clk 0:02:58.7]}
4. e3 {[%clk 0:02:53.8]} 4... O-O {[%clk 0:02:57.5]} 5. Bd3 {[%clk 0:02:53.6]}
5... d5 {[%clk 0:02:57.5]} 6. cxd5 {[%clk 0:02:53]} 6... exd5 {[%clk 0:02:56.8]}
7. a3 {[%clk 0:02:53.4]} 7... Bd6 {[%clk 0:02:56.1]} 8. Qc2 {[%clk 0:02:52.4]}
8... c6 {[%clk 0:02:54.4]} 9. Nge2 {[%clk 0:02:50.3]} 9... Re8 {[%clk
0:02:52.2]} 10. Bd2 {[%clk 0:02:50.3]} 10... Nbd7 {[%clk 0:02:50.1]} 11. f3
{[%clk 0:02:38.2]} 11... c5 {[%clk 0:02:45.6]} 12. g4 {[%clk 0:02:37.4]} 12...
c4 {[%clk 0:02:43.2]} 13. Bf5 {[%clk 0:02:37]} 13... g6 {[%clk 0:02:42.6]} 14.
g5 {[%clk 0:02:30.2]} 14... Nh5 {[%clk 0:02:30.6]} 15. Bg4 {[%clk 0:02:20.9]}
15... Nb6 {[%clk 0:02:23.6]} 16. Bxh5 {[%clk 0:02:19.2]} 16... gxh5 {[%clk
0:02:23]} 17. O-O-O {[%clk 0:02:16.9]} 17... Bd7 {[%clk 0:02:15.8]} 18. e4
{[%clk 0:02:14.4]} 18... dxe4 {[%clk 0:02:09.3]} 19. fxe4 {[%clk 0:02:15.3]}
19... Bg4 {[%clk 0:02:07.9]} 20. Rdf1 {[%clk 0:02:13.1]} 20... Qe7 {[%clk
0:01:59.3]} 21. e5 {[%clk 0:02:08.4]} 21... Bc7 {[%clk 0:01:53.5]} 22. Ng3
{[%clk 0:01:59.5]} 22... Rad8 {[%clk 0:01:49.8]} 23. Qe4 {[%clk 0:01:56.5]}
23... Qd7 {[%clk 0:01:33.1]} 24. h3 {[%clk 0:01:52.4]} 24... Be6 {[%clk
0:01:13.2]} 25. Nxh5 {[%clk 0:01:49.7]} 25... Qxd4 {[%clk 0:01:05.6]} 26. Nf6+
{[%clk 0:01:49.2]} 26... Kf8 {[%clk 0:01:05.7]} 27. Qxd4 {[%clk 0:01:33.4]}
27... Rxd4 {[%clk 0:01:04.3]} 28. Nxe8 {[%clk 0:01:23.4]} 28... Kxe8 {[%clk
0:01:03.5]} 29. Re1 {[%clk 0:01:08.2]} 29... Rh4 {[%clk 0:00:58.5]} 30. Re3
{[%clk 0:01:02.8]} 30... Nd7 {[%clk 0:00:55.9]} 31. Be1 {[%clk 0:00:57.6]} 31...
Rf4 {[%clk 0:00:46.6]} 32. Bg3 {[%clk 0:00:52.3]} 32... Rf5 {[%clk 0:00:43.4]}
33. Nb5 {[%clk 0:00:52]} 33... Bb8 {[%clk 0:00:33]} 34. Nd6+ {[%clk 0:00:43.2]}
34... Bxd6 {[%clk 0:00:32.2]} 35. exd6 {[%clk 0:00:44.1]} 35... Rxg5 {[%clk
0:00:30.8]} 36. h4 {[%clk 0:00:30.9]} 36... Rf5 {[%clk 0:00:26.4]} 37. Kc2
{[%clk 0:00:20.7]} 37... Nc5 {[%clk 0:00:19]} 38. Re5 {[%clk 0:00:20.9]} 38...
Kd7 {[%clk 0:00:18.9]} 39. Rxf5 {[%clk 0:00:12.2]} 39... Bxf5+ {[%clk
0:00:18.9]} 40. Kd1 {[%clk 0:00:12.1]} 40... Bg4+ {[%clk 0:00:17.2]} 41. Kc1
{[%clk 0:00:10.8]} 41... Nd3+ {[%clk 0:00:15.4]} 42. Kc2 {[%clk 0:00:10.8]}
42... f5 {[%clk 0:00:12.8]} 43. Rf1 {[%clk 0:00:07.6]} 43... h5 {[%clk
0:00:10.2]} 44. Kc3 {[%clk 0:00:07.6]} 44... a5 {[%clk 0:00:09.7]} 45. b4 {[%clk
0:00:06]} 45... axb4+ {[%clk 0:00:06.9]} 46. axb4 {[%clk 0:00:06.9]} 46... b5
{[%clk 0:00:07]} 47. Ra1 {[%clk 0:00:06.8]} 47... f4 {[%clk 0:00:06.9]} 48. Bh2
{[%clk 0:00:06.5]} 48... Kxd6 {[%clk 0:00:07]} 49. Ra5 {[%clk 0:00:06.3]} 49...
Kc6 {[%clk 0:00:07]} 50. Ra6+ {[%clk 0:00:06.8]} 50... Kd5 {[%clk 0:00:07]} 51.
Rb6 {[%clk 0:00:07.5]} 51... f3 {[%clk 0:00:05.9]} 52. Bg3 {[%clk 0:00:04.7]}
52... f2 {[%clk 0:00:05.2]} 53. Bxf2 {[%clk 0:00:04.7]} 53... Nxf2 {[%clk
0:00:05.3]} 54. Rxb5+ {[%clk 0:00:05.4]} 54... Kd6 {[%clk 0:00:04.1]} 55. Rb8
{[%clk 0:00:04]} 55... Be2 {[%clk 0:00:03.9]} 56. Kd4 {[%clk 0:00:03.2]} 56...
Bd3 {[%clk 0:00:03.3]} 57. Rb6+ {[%clk 0:00:03]} 57... Kc7 {[%clk 0:00:03]} 58.
Rh6 {[%clk 0:00:03.9]} 58... Be2 {[%clk 0:00:01.6]} 59. b5 {[%clk 0:00:03.9]}
59... Nd1 {[%clk 0:00:01.6]} 60. Kc5 {[%clk 0:00:03.4]} 1-0

[Event "Early-Titled-Tuesday-Blitz-September-12-2023"]
[Site "Chess.com"]
[Date "2023.09.12"]
[Round "1"]
[White "Niilo1"]
[Black "kuba2006"]
[Result "1/2-1/2"]
[WhiteElo "2275"]
[BlackElo "2567"]
[TimeControl "180+1"]
[EndTime "8:08:24 PDT"]
[Termination "Game drawn by repetition"]

1. e4 {[%clk 0:03:00.9]} 1... Nf6 {[%clk 0:03:00.8]} 2. e5 {[%clk 0:02:59.7]}
2... Nd5 {[%clk 0:02:59]} 3. d4 {[%clk 0:02:58.8]} 3... d6 {[%clk 0:02:59]} 4.
Nf3 {[%clk 0:02:57.5]} 4... Bg4 {[%clk 0:02:57.9]} 5. h3 {[%clk 0:02:50.9]} 5...
Bxf3 {[%clk 0:02:56.9]} 6. Qxf3 {[%clk 0:02:51.8]} 6... dxe5 {[%clk 0:02:57.1]}
7. dxe5 {[%clk 0:02:52.1]} 7... e6 {[%clk 0:02:53.9]} 8. Bd3 {[%clk 0:02:39.5]}
8... Nc6 {[%clk 0:02:53.3]} 9. Bf4 {[%clk 0:02:35.6]} 9... Nxf4 {[%clk 0:02:45]}
10. Qxf4 {[%clk 0:02:35.6]} 10... Qd5 {[%clk 0:02:35.7]} 11. Be4 {[%clk
0:02:26]} 11... Qxe5 {[%clk 0:02:35.5]} 12. Qxe5 {[%clk 0:02:25.9]} 12... Nxe5
{[%clk 0:02:36.4]} 13. Bxb7 {[%clk 0:02:25.7]} 13... Rb8 {[%clk 0:02:36.6]} 14.
Be4 {[%clk 0:02:22.7]} 14... Rxb2 {[%clk 0:02:35.7]} 15. Nd2 {[%clk 0:02:18]}
15... Bb4 {[%clk 0:02:28.6]} 16. Ke2 {[%clk 0:02:09.7]} 16... Bxd2 {[%clk
0:02:20.9]} 17. Kxd2 {[%clk 0:02:08.9]} 17... Ke7 {[%clk 0:02:20.4]} 18. Rhb1
{[%clk 0:01:54.6]} 18... Rhb8 {[%clk 0:02:14.4]} 19. Rxb2 {[%clk 0:01:53.3]}
19... Rxb2 {[%clk 0:02:15.3]} 20. Kc3 {[%clk 0:01:53.9]} 20... Rb6 {[%clk
0:02:14.4]} 21. g3 {[%clk 0:01:50]} 21... f5 {[%clk 0:02:06]} 22. Bg2 {[%clk
0:01:49.5]} 22... Nf7 {[%clk 0:02:05.4]} 23. f4 {[%clk 0:01:43.2]} 23... e5
{[%clk 0:01:58.8]} 24. fxe5 {[%clk 0:01:43.1]} 24... Nxe5 {[%clk 0:01:59.7]} 25.
Re1 {[%clk 0:01:43.4]} 25... Kf6 {[%clk 0:01:58.7]} 26. Bd5 {[%clk 0:01:26.8]}
26... Rd6 {[%clk 0:01:43.8]} 27. Bg2 {[%clk 0:01:13.7]} 27... g5 {[%clk
0:01:43.6]} 28. Rf1 {[%clk 0:01:13.7]} 28... h6 {[%clk 0:01:37.6]} 29. Be4
{[%clk 0:01:12.1]} 29... Ke6 {[%clk 0:00:48.3]} 30. Bxf5+ {[%clk 0:01:09.4]}
30... Kd5 {[%clk 0:00:48.4]} 31. Rd1+ {[%clk 0:01:06]} 31... Kc5 {[%clk
0:00:47.7]} 32. Re1 {[%clk 0:01:04.8]} 32... Nf3 {[%clk 0:00:43.7]} 33. Re7
{[%clk 0:01:02.1]} 33... Kb6 {[%clk 0:00:41]} 34. Be4 {[%clk 0:00:59.5]} 34...
Ng1 {[%clk 0:00:36.6]} 35. h4 {[%clk 0:00:48.9]} 35... Ne2+ {[%clk 0:00:35.2]}
36. Kb2 {[%clk 0:00:48.6]} 36... Nxg3 {[%clk 0:00:35.5]} 37. hxg5 {[%clk
0:00:40.8]} 37... Nxe4 {[%clk 0:00:35.5]} 38. gxh6 {[%clk 0:00:20.3]} 38... Ng5
{[%clk 0:00:29.2]} 39. Rg7 {[%clk 0:00:16.3]} 39... Ne4 {[%clk 0:00:17.4]} 40.
h7 {[%clk 0:00:14.7]} 40... Rh6 {[%clk 0:00:17.6]} 41. Rg6+ {[%clk 0:00:15.1]}
41... Rxg6 {[%clk 0:00:18.2]} 42. h8=Q {[%clk 0:00:15.7]} 42... Nc5 {[%clk
0:00:17.6]} 43. Qh7 {[%clk 0:00:12.4]} 43... Rc6 {[%clk 0:00:16.9]} 44. Qg8
{[%clk 0:00:11]} 44... Na4+ {[%clk 0:00:16.7]} 45. Kb3 {[%clk 0:00:10.3]} 45...
Ka5 {[%clk 0:00:15.2]} 46. Qd5+ {[%clk 0:00:07.4]} 46... Rc5 {[%clk 0:00:15]}
47. Qd4 {[%clk 0:00:04.1]} 47... Rc3+ {[%clk 0:00:09.2]} 48. Qxc3+ {[%clk
0:00:01.3]} 48... Nxc3 {[%clk 0:00:10.1]} 49. Kxc3 {[%clk 0:00:02.2]} 49... Ka4
{[%clk 0:00:11]} 50. Kb2 {[%clk 0:00:02.8]} 50... Kb4 {[%clk 0:00:11.6]} 51. c3+
{[%clk 0:00:02.8]} 51... Kc4 {[%clk 0:00:11.7]} 52. Kc2 {[%clk 0:00:03.2]} 52...
a5 {[%clk 0:00:11.6]} 53. Kb2 {[%clk 0:00:03.9]} 53... a4 {[%clk 0:00:11.4]} 54.
Kc2 {[%clk 0:00:02.5]} 54... a3 {[%clk 0:00:11.4]} 55. Kd2 {[%clk 0:00:02.1]}
55... c6 {[%clk 0:00:10.1]} 56. Kc2 {[%clk 0:00:02.7]} 56... c5 {[%clk
0:00:09.2]} 57. Kd2 {[%clk 0:00:03.3]} 57... Kd5 {[%clk 0:00:09.6]} 58. Kc2
{[%clk 0:00:03.9]} 58... c4 {[%clk 0:00:10.4]} 59. Kd2 {[%clk 0:00:04.1]} 59...
Ke4 {[%clk 0:00:11.3]} 60. Ke2 {[%clk 0:00:04.7]} 60... Kf4 {[%clk 0:00:12.2]}
61. Kf2 {[%clk 0:00:04.9]} 61... Ke4 {[%clk 0:00:12.7]} 62. Ke2 {[%clk
0:00:05.5]} 62... Kf4 {[%clk 0:00:12.9]} 63. Kf2 {[%clk 0:00:06.2]} 63... Ke4
{[%clk 0:00:12.2]} 64. Ke2 {[%clk 0:00:06.9]} 1/2-1/2

[Event "Early-Titled-Tuesday-Blitz-September-12-2023"]
[Site "Chess.com"]
[Date "2023.09.12"]
[Round "1"]
[White "Cheer_Down"]
[Black "Mikasinski"]
[Result "1/2-1/2"]
[WhiteElo "2390"]
[BlackElo "2676"]
[TimeControl "180+1"]
[EndTime "8:08:32 PDT"]
[Termination "Game drawn - insufficient material"]

1. e4 {[%clk 0:02:57.2]} 1... c5 {[%clk 0:03:00]} 2. Nf3 {[%clk 0:02:56.4]} 2...
d6 {[%clk 0:03:00.3]} 3. Bb5+ {[%clk 0:02:55.5]} 3... Bd7 {[%clk 0:03:00.3]} 4.
Bxd7+ {[%clk 0:02:54.3]} 4... Qxd7 {[%clk 0:03:01.2]} 5. c4 {[%clk 0:02:54.1]}
5... Nc6 {[%clk 0:03:01.8]} 6. d4 {[%clk 0:02:54.2]} 6... cxd4 {[%clk
0:03:02.7]} 7. Nxd4 {[%clk 0:02:54.5]} 7... Nf6 {[%clk 0:03:03.4]} 8. Nc3 {[%clk
0:02:54]} 8... g6 {[%clk 0:03:04.1]} 9. f3 {[%clk 0:02:52.6]} 9... Bg7 {[%clk
0:03:04]} 10. Be3 {[%clk 0:02:52.6]} 10... O-O {[%clk 0:03:04.1]} 11. O-O {[%clk
0:02:52.6]} 11... Rfd8 {[%clk 0:03:04.8]} 12. Rc1 {[%clk 0:02:48.3]} 12... e6
{[%clk 0:03:05]} 13. b3 {[%clk 0:02:38.7]} 13... d5 {[%clk 0:03:05.1]} 14. Nxc6
{[%clk 0:02:35.6]} 14... bxc6 {[%clk 0:03:02.3]} 15. cxd5 {[%clk 0:02:34.8]}
15... cxd5 {[%clk 0:03:01.6]} 16. e5 {[%clk 0:02:34.7]} 16... Ne8 {[%clk
0:02:59.5]} 17. Bd4 {[%clk 0:02:32.1]} 17... Rac8 {[%clk 0:02:57.8]} 18. f4
{[%clk 0:02:30.7]} 18... f6 {[%clk 0:02:57.7]} 19. Qe2 {[%clk 0:02:28.9]} 19...
f5 {[%clk 0:02:55.6]} 20. Na4 {[%clk 0:02:20.3]} 20... Bf8 {[%clk 0:02:53.5]}
21. g3 {[%clk 0:02:12.6]} 21... Bb4 {[%clk 0:02:38.7]} 22. Qa6 {[%clk
0:02:04.7]} 22... Bd2 {[%clk 0:02:05.7]} 23. Rxc8 {[%clk 0:02:04]} 23... Qxc8
{[%clk 0:02:06]} 24. Qxc8 {[%clk 0:01:51.8]} 24... Rxc8 {[%clk 0:02:05.9]} 25.
Rd1 {[%clk 0:01:36.3]} 25... Rc2 {[%clk 0:02:05.2]} 26. a3 {[%clk 0:01:30.6]}
26... a5 {[%clk 0:02:04.7]} 27. Nc5 {[%clk 0:01:22]} 27... Kf7 {[%clk
0:02:03.9]} 28. Kf1 {[%clk 0:01:13]} 28... Nc7 {[%clk 0:01:57.9]} 29. Ke2 {[%clk
0:01:03.4]} 29... Bb4+ {[%clk 0:01:54.2]} 30. Kd3 {[%clk 0:01:02.7]} 30... Rxc5
{[%clk 0:01:54.4]} 31. axb4 {[%clk 0:01:02]} 31... Rb5 {[%clk 0:01:50.3]} 32.
Rc1 {[%clk 0:00:59]} 32... Na6 {[%clk 0:01:48.2]} 33. bxa5 {[%clk 0:00:56.9]}
33... Rxb3+ {[%clk 0:01:48.5]} 34. Rc3 {[%clk 0:00:55.8]} 34... Nb4+ {[%clk
0:01:45.9]} 35. Kd2 {[%clk 0:00:53.7]} 35... Rb2+ {[%clk 0:01:45.6]} 36. Ke3
{[%clk 0:00:52.5]} 36... Nc2+ {[%clk 0:01:43.6]} 37. Kd3 {[%clk 0:00:51.4]}
37... Ne1+ {[%clk 0:01:39]} 38. Ke3 {[%clk 0:00:49.2]} 38... Ra2 {[%clk
0:01:36.2]} 39. Rc7+ {[%clk 0:00:47.4]} 39... Kg8 {[%clk 0:01:36.2]} 40. Bb6
{[%clk 0:00:46.8]} 40... Ra4 {[%clk 0:01:17.7]} 41. Re7 {[%clk 0:00:45.5]} 41...
d4+ {[%clk 0:01:15.1]} 42. Kd2 {[%clk 0:00:41.6]} 42... Nf3+ {[%clk 0:01:14.7]}
43. Kd3 {[%clk 0:00:41.4]} 43... Ra3+ {[%clk 0:01:14.2]} 44. Ke2 {[%clk
0:00:38.3]} 44... Re3+ {[%clk 0:01:08.7]} 45. Kf2 {[%clk 0:00:37]} 45... Ra3
{[%clk 0:01:03.9]} 46. a6 {[%clk 0:00:34.6]} 46... Rxa6 {[%clk 0:01:03.8]} 47.
Kxf3 {[%clk 0:00:26.7]} 47... Rxb6 {[%clk 0:01:03.5]} 48. Rd7 {[%clk 0:00:27.1]}
48... Rb3+ {[%clk 0:01:02.7]} 49. Kf2 {[%clk 0:00:25.7]} 49... d3 {[%clk
0:01:02.5]} 50. Ke3 {[%clk 0:00:24.8]} 50... d2+ {[%clk 0:01:02]} 51. Kxd2
{[%clk 0:00:24.2]} 51... Rb2+ {[%clk 0:01:02.6]} 52. Ke3 {[%clk 0:00:24.1]}
52... Rxh2 {[%clk 0:01:03.4]} 53. Re7 {[%clk 0:00:23.8]} 53... Rb2 {[%clk
0:00:55.1]} 54. Rxe6 {[%clk 0:00:23.5]} 54... Rb7 {[%clk 0:00:54.8]} 55. Rd6
{[%clk 0:00:23.1]} 55... Kf7 {[%clk 0:00:54.5]} 56. Ra6 {[%clk 0:00:23.2]} 56...
h6 {[%clk 0:00:51.1]} 57. Kf3 {[%clk 0:00:23.3]} 57... Rc7 {[%clk 0:00:49.6]}
58. Ra3 {[%clk 0:00:23]} 58... g5 {[%clk 0:00:45.3]} 59. g4 {[%clk 0:00:22]}
59... fxg4+ {[%clk 0:00:44.2]} 60. Kxg4 {[%clk 0:00:22.1]} 60... Rc4 {[%clk
0:00:44]} 61. Ra7+ {[%clk 0:00:21.5]} 61... Kg6 {[%clk 0:00:42.6]} 62. Ra6+
{[%clk 0:00:19.9]} 62... Kh7 {[%clk 0:00:43.1]} 63. Rf6 {[%clk 0:00:17.6]} 63...
Kg7 {[%clk 0:00:37.5]} 64. Rf5 {[%clk 0:00:12.8]} 64... Kg6 {[%clk 0:00:27.4]}
65. Rf6+ {[%clk 0:00:13]} 65... Kg7 {[%clk 0:00:28]} 66. Rf5 {[%clk 0:00:13.6]}
66... Ra4 {[%clk 0:00:27.5]} 67. Rf6 {[%clk 0:00:13.2]} 67... gxf4 {[%clk
0:00:19.6]} 68. Rxf4 {[%clk 0:00:13.2]} 68... h5+ {[%clk 0:00:19]} 69. Kg5
{[%clk 0:00:12.4]} 69... Rxf4 {[%clk 0:00:19.7]} 70. Kxf4 {[%clk 0:00:12.3]}
70... Kg6 {[%clk 0:00:20.3]} 71. Kg3 {[%clk 0:00:12]} 71... Kg5 {[%clk
0:00:20.2]} 72. e6 {[%clk 0:00:12.2]} 72... Kf6 {[%clk 0:00:20.8]} 73. Kh4
{[%clk 0:00:12.7]} 73... Ke7 {[%clk 0:00:21.3]} 74. Kxh5 {[%clk 0:00:13.6]}
74... Kxe6 {[%clk 0:00:22.2]} 1/2-1/2

[Event "Early-Titled-Tuesday-Blitz-September-12-2023"]
[Site "Chess.com"]
[Date "2023.09.12"]
[Round "1"]
[White "Hasangatin_Ramil"]
[Black "Gogolev_Artemy"]
[Result "1-0"]
[WhiteElo "2735"]
[BlackElo "2415"]
[TimeControl "180+1"]
[EndTime "8:08:35 PDT"]
[Termination "Hasangatin_Ramil won on time"]

1. e4 {[%clk 0:02:59.5]} 1... c6 {[%clk 0:02:58.1]} 2. Nf3 {[%clk 0:02:58.8]}
2... d5 {[%clk 0:02:57.9]} 3. d3 {[%clk 0:02:59.2]} 3... g6 {[%clk 0:02:56.2]}
4. Qe2 {[%clk 0:02:56]} 4... Bg7 {[%clk 0:02:54.7]} 5. g3 {[%clk 0:02:56.3]}
5... Nf6 {[%clk 0:02:38.9]} 6. Bg2 {[%clk 0:02:53.6]} 6... O-O {[%clk
0:02:38.5]} 7. O-O {[%clk 0:02:53.5]} 7... Bg4 {[%clk 0:02:29.8]} 8. Nbd2 {[%clk
0:02:50.1]} 8... Na6 {[%clk 0:02:15.8]} 9. h3 {[%clk 0:02:45.6]} 9... Bxf3
{[%clk 0:02:16]} 10. Nxf3 {[%clk 0:02:46.4]} 10... Nc5 {[%clk 0:02:08.9]} 11. e5
{[%clk 0:02:39.7]} 11... Nfd7 {[%clk 0:02:08]} 12. d4 {[%clk 0:02:39.5]} 12...
Ne4 {[%clk 0:01:57.5]} 13. Kh2 {[%clk 0:02:35.8]} 13... f6 {[%clk 0:01:55.3]}
14. exf6 {[%clk 0:02:25.6]} 14... exf6 {[%clk 0:01:54.6]} 15. Nd2 {[%clk
0:02:23.3]} 15... f5 {[%clk 0:01:54.2]} 16. c3 {[%clk 0:02:19.4]} 16... Re8
{[%clk 0:01:51.8]} 17. Qd3 {[%clk 0:02:14.9]} 17... Ndf6 {[%clk 0:01:49.4]} 18.
Nf3 {[%clk 0:02:12.4]} 18... h6 {[%clk 0:01:47.5]} 19. Bf4 {[%clk 0:02:10.6]}
19... Nd7 {[%clk 0:01:43.8]} 20. c4 {[%clk 0:01:55.8]} 20... dxc4 {[%clk
0:01:33.6]} 21. Qxc4+ {[%clk 0:01:52.9]} 21... Kh7 {[%clk 0:01:34.1]} 22. Rad1
{[%clk 0:01:49.5]} 22... Nb6 {[%clk 0:01:34.2]} 23. Qb3 {[%clk 0:01:45.5]} 23...
Qd5 {[%clk 0:01:34.7]} 24. Qc2 {[%clk 0:01:22.3]} 24... Qxa2 {[%clk 0:01:21.7]}
25. Ne5 {[%clk 0:01:22]} 25... Nd6 {[%clk 0:01:07.2]} 26. h4 {[%clk 0:01:10.7]}
26... Qe6 {[%clk 0:01:01.8]} 27. Rfe1 {[%clk 0:01:08.5]} 27... Qf6 {[%clk
0:01:00.8]} 28. Qc5 {[%clk 0:00:54.5]} 28... Rad8 {[%clk 0:00:55.7]} 29. Qa5
{[%clk 0:00:41.2]} 29... Ra8 {[%clk 0:00:47.5]} 30. Rd3 {[%clk 0:00:36.3]} 30...
Ne4 {[%clk 0:00:37.7]} 31. Rxe4 {[%clk 0:00:31.7]} 31... fxe4 {[%clk 0:00:38.6]}
32. Bxe4 {[%clk 0:00:32.1]} 32... Re6 {[%clk 0:00:36.4]} 33. h5 {[%clk 0:00:29]}
33... Kg8 {[%clk 0:00:30.2]} 34. hxg6 {[%clk 0:00:28]} 34... Qe7 {[%clk
0:00:23.1]} 35. Kg2 {[%clk 0:00:27]} 35... Rf8 {[%clk 0:00:22.8]} 36. Qxa7
{[%clk 0:00:22.2]} 36... Nd7 {[%clk 0:00:16.3]} 37. Qxb7 {[%clk 0:00:19.2]}
37... Nxe5 {[%clk 0:00:16.8]} 38. Qxe7 {[%clk 0:00:18.9]} 38... Rxe7 {[%clk
0:00:17.7]} 39. dxe5 {[%clk 0:00:18.1]} 39... Bxe5 {[%clk 0:00:18.3]} 40. Bxh6
{[%clk 0:00:18.3]} 40... Rb8 {[%clk 0:00:16.5]} 41. b3 {[%clk 0:00:17]} 41... c5
{[%clk 0:00:14.2]} 42. Bd5+ {[%clk 0:00:16.5]} 42... Kh8 {[%clk 0:00:14.1]} 43.
Re3 {[%clk 0:00:16.7]} 43... Bf6 {[%clk 0:00:14.3]} 44. Bf4 {[%clk 0:00:13.3]}
44... Rxe3 {[%clk 0:00:13.7]} 45. Bxe3 {[%clk 0:00:13.9]} 45... Bd4 {[%clk
0:00:13.1]} 46. Bf4 {[%clk 0:00:13]} 46... Rd8 {[%clk 0:00:12.4]} 47. Bf7 {[%clk
0:00:12.9]} 47... Kg7 {[%clk 0:00:12.5]} 48. Kf3 {[%clk 0:00:13.2]} 48... Rd7
{[%clk 0:00:08.8]} 49. g4 {[%clk 0:00:12.9]} 49... Bf6 {[%clk 0:00:07.9]} 50.
Be3 {[%clk 0:00:12.8]} 50... Bd4 {[%clk 0:00:06.8]} 51. Bf4 {[%clk 0:00:10.3]}
51... Bf6 {[%clk 0:00:06.2]} 52. Bg3 {[%clk 0:00:10.3]} 52... Rd3+ {[%clk
0:00:05.7]} 53. Ke4 {[%clk 0:00:10.6]} 53... Rd4+ {[%clk 0:00:05.5]} 54. Ke3
{[%clk 0:00:10.3]} 54... Rd7 {[%clk 0:00:03.5]} 55. f4 {[%clk 0:00:09.3]} 55...
Bd4+ {[%clk 0:00:03.1]} 56. Kf3 {[%clk 0:00:09.3]} 56... Re7 {[%clk 0:00:03.8]}
57. Bf2 {[%clk 0:00:09.3]} 57... Bxf2 {[%clk 0:00:02.4]} 58. Kxf2 {[%clk
0:00:10.2]} 58... Kf6 {[%clk 0:00:03.3]} 59. Kf3 {[%clk 0:00:09.7]} 59... Rd7
{[%clk 0:00:02.9]} 60. Bc4 {[%clk 0:00:09.3]} 60... Kxg6 {[%clk 0:00:02.4]} 61.
g5 {[%clk 0:00:09.3]} 61... Rd4 {[%clk 0:00:01.9]} 62. Kg4 {[%clk 0:00:09.1]}
62... Kg7 {[%clk 0:00:01.5]} 63. Kf5 {[%clk 0:00:08.7]} 1-0